{"text_format":"3","workbook":"xlsx","n_sheets":2,"sheets":["Arve","Ettevõtte häälestamine"],"not_rendered":{"images":1,"defined_names":27},"read":"whole","date_system":"1900"}

{"sheet":"Arve","index":0,"n_rows":35,"n_cols":7,"rows_kept":35,"merged":[[1,1,1,2],[1,3,2,4],[1,6,2,6],[3,3,3,4],[4,3,4,4],[5,3,5,4],[23,1,23,3],[24,1,24,3],[25,1,25,3],[26,1,26,3],[34,1,34,4]]}
[null,"ARVE","0005"]
[null,{"$f":"TODAY()","v":"2018-07-13"},null,{"$f":"ArveKokku","v":79.65},null," ","Ettevõtte häälestamine"]
[null,"MAKSETÄHTPÄEV:",{"$f":"TODAY()+15","v":"2018-07-28"},null,null," "]
[null,"ANU PÄRN",null,"ADVENTURE WORKS"]
[null,"Fabrikam, Inc.",null,"Vahtra tänav 23456"]
[null,"Metsa 321",null,"54321 Tartu"]
[null,"12345 Tallinn"]
[null,"KOGUS","ÜKSIKASJAD","ÜHIKU HIND","REA KOGUSUMMA"]
[null,2,"Vidinad",14.95,{"$f":"IFERROR(ArveÜksikasjad[[#This Row],[ÜHIKU HIND]]*ArveÜksikasjad[[#This Row],[KOGUS]],\"\")","v":{"v":29.9,"d":"29.90"}}]
[null,5,"Seibid",9.95,{"$f":"IFERROR(ArveÜksikasjad[[#This Row],[ÜHIKU HIND]]*ArveÜksikasjad[[#This Row],[KOGUS]],\"\")","v":49.75}]
[{"$nulls":4},{"$f":"IFERROR(ArveÜksikasjad[[#This Row],[ÜHIKU HIND]]*ArveÜksikasjad[[#This Row],[KOGUS]],\"\")","v":0}]
[{"$nulls":4},{"$f":"IFERROR(ArveÜksikasjad[[#This Row],[ÜHIKU HIND]]*ArveÜksikasjad[[#This Row],[KOGUS]],\"\")","v":0}]
[{"$nulls":4},{"$f":"IFERROR(ArveÜksikasjad[[#This Row],[ÜHIKU HIND]]*ArveÜksikasjad[[#This Row],[KOGUS]],\"\")","v":0}]
[{"$nulls":4},{"$f":"IFERROR(ArveÜksikasjad[[#This Row],[ÜHIKU HIND]]*ArveÜksikasjad[[#This Row],[KOGUS]],\"\")","v":0}]
[{"$nulls":4},{"$f":"IFERROR(ArveÜksikasjad[[#This Row],[ÜHIKU HIND]]*ArveÜksikasjad[[#This Row],[KOGUS]],\"\")","v":0}]
[{"$nulls":4},{"$f":"IFERROR(ArveÜksikasjad[[#This Row],[ÜHIKU HIND]]*ArveÜksikasjad[[#This Row],[KOGUS]],\"\")","v":0}]
[{"$nulls":4},{"$f":"IFERROR(ArveÜksikasjad[[#This Row],[ÜHIKU HIND]]*ArveÜksikasjad[[#This Row],[KOGUS]],\"\")","v":0}]
[{"$nulls":4},{"$f":"IFERROR(ArveÜksikasjad[[#This Row],[ÜHIKU HIND]]*ArveÜksikasjad[[#This Row],[KOGUS]],\"\")","v":0}]
[{"$nulls":4},{"$f":"IFERROR(ArveÜksikasjad[[#This Row],[ÜHIKU HIND]]*ArveÜksikasjad[[#This Row],[KOGUS]],\"\")","v":0}]
[{"$nulls":4},{"$f":"IFERROR(ArveÜksikasjad[[#This Row],[ÜHIKU HIND]]*ArveÜksikasjad[[#This Row],[KOGUS]],\"\")","v":0}]
[{"$nulls":4},{"$f":"IFERROR(ArveÜksikasjad[[#This Row],[ÜHIKU HIND]]*ArveÜksikasjad[[#This Row],[KOGUS]],\"\")","v":0}]
[{"$nulls":4},{"$f":"IFERROR(ArveÜksikasjad[[#This Row],[ÜHIKU HIND]]*ArveÜksikasjad[[#This Row],[KOGUS]],\"\")","v":0}]
[{"$nulls":4},{"$f":"IFERROR(ArveÜksikasjad[[#This Row],[ÜHIKU HIND]]*ArveÜksikasjad[[#This Row],[KOGUS]],\"\")","v":0}]
[null,"Allahindlus"]
[null,"Kogusumma (neto)",null,null,{"$f":"SUM(ArveÜksikasjad[REA KOGUSUMMA])-E24","v":{"v":79.65,"d":"79.65 €"}}]
[null,"Maks"]
[null,{"$f":"\"KOKKU \" & REPT(EttevõtteHäälestamine_TeieValuutaLühend,LEN(EttevõtteHäälestamine_TeieValuutaLühend)>0)","v":"KOKKU EUR"},null,null,{"$f":"IFERROR(E25+E26, \"\")","v":{"v":79.65,"d":"79.65 €"}}]
[null,"MAKSEANDMED",null,null,"MUU TEAVE"]
[null,"Makse saaja nimi:",{"$f":" EttevõtteHäälestamine_PankMakseSaajaNimi","v":"Adventure Works"},null,{"$f":"IFERROR(EttevõtteHäälestamine_TeieNimi,\"\")","v":""}]
[null,"Panga nimi:",{"$f":"EttevõtteHäälestamine_PangaNimi","v":"Metsasalu pank"},null,{"$f":"IFERROR(\"Telefon: \" & EttevõtteHäälestamine_TeieTelefon,\"\")","v":"Telefon: 37212345678"}]
[null,"Panga aadress:",{"$f":"EttevõtteHäälestamine_PangaAadress","v":"Pikk tn 567, 54321 Tartu"},null,{"$f":"IFERROR(\"Faksinumber: \" & EttevõtteHäälestamine_TeieFaks,\"\")","v":"Faksinumber: 37212345679"}]
[null,"Kontonumber:",{"$f":"EttevõtteHäälestamine_Pangakonto","v":1234567},null,{"$f":"IFERROR(EttevõtteHäälestamine_TeieURL,\"\")","v":"Adventure-Works.com"}]
[null,"Marsruutimisnumber (SWIFT-kood):",{"$f":"EttevõtteHäälestamine_PangaMarsruutimine","v":9876543210},null,{"$f":"IFERROR(EttevõtteHäälestamine_TeieMeiliaadress,\"\")","v":"raamatupidamine@Adventure-Works.com"}]
[null,"Viitenumber:",{"$f":"ArvenumbriKuvamine","v":"0005"},null,{"$f":"IFERROR(IF(LEN(Client_PO),\"Contract/PO: \" & Client_PO,\"\"),\"\")","v":""}]
[null,{"$f":"UPPER(\"Makse tuleb teostada pangaülekandega või tšekiga, mis on väljamakstav ettevõttele \" & EttevõtteHäälestamine_TšekiMaksesaaja& \".\")","v":"MAKSE TULEB TEOSTADA PANGAÜLEKANDEGA VÕI TŠEKIGA, MIS ON VÄLJAMAKSTAV ETTEVÕTTELE ADVENTURE WORKS."}]

{"sheet":"Ettevõtte häälestamine","index":1,"n_rows":20,"n_cols":5,"rows_kept":20}
[null,"ETTEVÕTTE HÄÄLESTAMINE"]
[null,"ARVE ESITAVA ETTEVÕTTE ANDMED","SUMMA",null,"Arve"]
[null,"Nimi","Peep Vaher"]
[null,"Ettevõtte nimi","ADVENTURE WORKS"]
[null,"Aadressirida 1","Vahtra tänav 23456"]
[null,"Aadressirida 2","54321 Tartu"]
[null,"Aadressirida 3"]
[null,"Aadressirida 4"]
[null,"Aadressirida 5"]
[null,"Telefon",37212345678]
[null,"Faksinumber",37212345679]
[null,"Veebisait","Adventure-Works.com"]
[null,"Meiliaadress","raamatupidamine@Adventure-Works.com"]
[null,"Valuuta lühend","EUR"]
[null,"Pangaülekande makse saaja nimi","Adventure Works"]
[null,"Panga nimi","Metsasalu pank"]
[null,"Panga aadress","Pikk tn 567, 54321 Tartu"]
[null,"Kontonumber",1234567]
[null,"Marsruutimisnumber (SWIFT-kood)",9876543210]
[null,"Tšekkide alusel makstakse raha:","Adventure Works"]